bitfinex/quotes_ETHUSD_20251124
["timestamp","ask_amount","ask_price","bid_price","bid_amount"]
[1763949515441,0.6668,2811.0,2810.4,0.095]
[1763949515835,0.4719,2810.9,2810.0,0.1359]
[1763949516136,0.4719,2810.9,2810.2,0.095]
[1763949517233,0.04447132,2810.8,2810.2,0.095]
[1763949517633,0.4642,2810.8,2810.2,0.095]
[1763949518013,0.6591,2811.0,2810.0,0.5236]
[1763949518209,0.6591,2811.0,2810.3,0.095]
[1763949518550,0.6591,2811.0,2810.5,0.095]
[1763949518914,0.6591,2811.0,2810.6,3.11]
[1763949519333,0.002,2811.4,2810.5,0.095]
[1763949519334,0.4662,2811.4,2810.5,0.095]
[1763949519538,0.4662,2811.4,2810.8,0.095]
[1763949519722,0.4662,2811.4,2810.7,0.095]
[1763949519929,0.002,2810.9,2810.5,3.11]
[1763949520181,0.002,2810.9,2810.5,3.205]
[1763949520586,0.002,2810.9,2810.5,3.5927]
[1763949520771,0.002,2810.9,2810.6,0.35927]
[1763949521988,0.2017,2810.9,2810.5,3.11]
[1763949522365,0.6659,2810.9,2810.5,3.11]
[1763949522900,0.002,2810.9,2810.5,3.205]
[1763949524399,0.4841,2810.6,2810.0,0.1359]
[1763949524967,0.9813,2810.6,2810.0,0.1359]
[1763949525600,0.002,2810.9,2810.0,0.6186]
[1763949525765,0.4992,2810.9,2810.2,0.095]
[1763949525967,0.002,2810.9,2810.1,0.3877]
[1763949526166,0.002,2810.9,2810.5,0.095]
[1763949526466,0.002,2810.9,2810.4,0.095]
[1763949526683,0.4972,2810.8,2810.2,0.095]
[1763949526891,0.0444729,2810.7,2810.0,0.2309]
[1763949527398,0.4972,2810.7,2810.2,0.095]
[1763949528523,0.4992,2810.9,2810.2,0.095]
[1763949528724,0.002,2810.9,2810.3,0.095]
[1763949528933,0.002,2810.9,2810.6,0.095]
[1763949529122,0.002,2810.9,2810.2,0.095]
[1763949529123,0.4992,2810.9,2810.2,0.095]
[1763949529700,0.002,2810.9,2810.2,0.3877]
[1763949529908,0.002,2810.9,2810.4,0.095]
[1763949530109,0.002,2810.9,2810.5,0.095]
[1763949530302,0.002,2810.9,2810.2,0.3877]
[1763949530504,0.002,2810.9,2810.7,0.095]
[1763949530824,0.002,2810.9,2809.7,3.11]
[1763949530825,0.9813,2810.8,2809.7,3.11]
[1763949531125,0.4841,2810.8,2810.1,0.095]
[1763949531330,0.4841,2810.8,2810.2,0.1359]
[1763949531492,0.0444729,2810.7,2809.8,0.3205]
[1763949531826,0.9813,2810.8,2809.8,0.4155]
[1763949532027,0.002,2810.9,2809.9,0.35255]
[1763949532028,0.4972,2810.7,2809.9,0.35255]
[1763949532724,0.4972,2810.7,2809.8,0.3205]
[1763949532929,0.4972,2810.7,2809.8,0.4155]
[1763949534197,0.4992,2810.9,2810.2,0.095]
[1763949534422,0.4992,2810.9,2809.9,0.095]
[1763949534625,4.71176285,2810.3,2809.9,0.095]
[1763949534929,4.71176285,2810.3,2809.9,0.48632]
[1763949535641,4.71176285,2810.3,2810.2,0.3877]
[1763949535845,4.71176285,2810.3,2810.2,0.4827]
[1763949536752,4.71176285,2810.3,2809.7,6.47]
[1763949537051,4.71176285,2810.3,2810.1,0.1]
[1763949537744,4.71176285,2810.3,2809.7,6.47]
[1763949537949,4.71176285,2809.8,2809.7,6.47]
[1763949538246,4.71176285,2809.8,2809.6,0.1]
[1763949538433,4.71176285,2809.8,2809.7,0.1]
[1763949538633,4.71176285,2809.8,2809.6,0.1]
[1763949538840,4.71176285,2809.8,2809.5,0.23]
[1763949539129,4.71176285,2809.8,2809.7,0.1]
[1763949541613,4.71176285,2809.8,2809.5,0.9]
[1763949542014,4.71176285,2809.8,2809.7,0.1]
[1763949542828,4.71176285,2809.8,2809.6,0.229]
[1763949543030,4.71176285,2809.8,2809.7,0.1]
[1763949544074,4.71176285,2809.8,2809.6,0.329]
[1763949544859,4.71176285,2809.8,2809.6,0.1]
[1763949545059,0.9813,2809.7,2809.5,0.001]
[1763949545361,0.4841,2809.6,2809.5,0.001]
[1763949545559,0.9813,2809.6,2809.5,0.001]
[1763949545973,0.9813,2809.6,2809.2,0.001]
[1763949546264,5.19586285,2809.3,2809.2,0.001]
[1763949546771,4.71176285,2809.3,2809.2,0.001]
[1763949549035,5.16876285,2809.3,2809.2,0.001]
[1763949549437,4.71176285,2809.3,2809.2,0.001]
[1763949549641,5.64896285,2809.3,2809.2,0.001]
[1763949549946,4.71176285,2809.3,2809.2,0.001]
[1763949550149,4.71176285,2809.3,2809.2,0.101]
[1763949552539,3.55666731,2809.3,2809.2,0.101]
[1763949553169,3.55666731,2809.3,2809.2,0.33]
[1763949553339,3.55666731,2809.3,2809.2,0.71898766]
[1763949554470,3.55666731,2809.4,2809.3,0.1]
[1763949554636,4.71519421,2810.0,2809.8,0.1]
[1763949555068,4.71519421,2810.0,2809.9,0.1]
[1763949557272,4.71519421,2810.5,2809.7,0.229]
[1763949557470,4.71519421,2810.5,2810.1,0.1]
[1763949557890,4.71519421,2810.5,2810.2,0.1]
[1763949557891,5.19539421,2810.5,2810.2,0.1]
[1763949558600,4.71519421,2810.5,2810.2,0.1]
[1763949559021,4.71519421,2810.5,2809.9,0.90699264]
[1763949559181,4.71519421,2810.5,2810.4,0.1]
[1763949561773,0.002,2810.8,2810.7,0.1]
[1763949564388,0.002,2810.8,2810.7,0.329]
[1763949564588,0.002,2810.8,2810.7,0.71770763]
[1763949564812,0.002,2810.8,2810.7,0.329]
[1763949566928,0.002,2810.8,2810.7,4.7938252]
[1763949568197,0.002,2810.8,2810.7,15.3131962]
[1763949568517,0.1845,2812.6,2810.8,0.90699264]
[1763949568687,0.1845,2812.6,2812.2,0.1]
[1763949568886,0.1845,2812.6,2810.7,7.11566512]
[1763949568887,5.44475509,2812.5,2811.6,0.1]
[1763949569095,0.6114544,2812.4,2811.7,0.228]
[1763949569300,1.0916544,2812.4,2811.9,0.1]
[1763949569496,0.4802,2812.3,2811.9,0.1]
[1763949570003,0.457,2812.0,2811.7,0.228]
[1763949570242,0.457,2812.0,2811.8,0.1]
[1763949570408,0.457,2811.8,2811.7,0.1]
[1763949570936,0.4802,2812.3,2811.8,0.1]
[1763949571133,0.1845,2811.9,2811.5,0.328]
[1763949571337,0.4802,2811.8,2811.5,0.328]
[1763949571833,0.6114544,2812.4,2811.5,0.328]
[1763949572037,0.55760095,2812.3,2811.9,0.1]
[1763949572238,0.4802,2812.3,2811.9,0.1]
[1763949572455,0.457,2812.0,2811.5,0.1]
[1763949572607,0.457,2811.6,2811.5,0.1]
[1763949572802,0.457,2811.6,2811.4,0.1]
[1763949573045,0.1845,2811.9,2811.4,0.1]
[1763949573046,0.6647,2811.9,2811.4,0.1]
[1763949573217,0.6647,2811.9,2809.7,3.55904249]
[1763949573218,0.457,2811.5,2810.8,0.1]
[1763949573418,5.42155509,2811.3,2809.3,7.11911141]
[1763949573617,5.42155509,2811.3,2810.6,0.1]
[1763949573824,0.4802,2811.2,2810.6,0.1]
[1763949574546,0.4802,2811.2,2809.4,0.71201114]
[1763949574547,0.6415,2810.7,2809.4,0.71201114]
[1763949574719,0.6415,2810.7,2810.5,0.1]
[1763949574912,0.6415,2810.7,2809.9,0.228]
[1763949574913,0.4802,2810.6,2809.9,0.228]
[1763949575154,0.4802,2810.6,2810.3,0.1]
[1763949575720,0.457,2810.4,2810.3,0.1]
[1763949575912,0.4802,2810.6,2810.3,0.1]
[1763949576109,0.457,2810.4,2810.3,0.1]
[1763949576450,0.457,2810.4,2810.1,0.1]
[1763949576747,0.1845,2810.7,2810.0,0.1]
[1763949577107,0.1845,2810.7,2810.2,0.1]
[1763949577309,0.1845,2810.7,2810.3,0.1]
[1763949577629,0.6714,2810.7,2810.5,0.1]
[1763949578444,0.002,2811.6,2810.3,0.90699264]
[1763949578619,0.002,2811.6,2811.3,0.1]
[1763949579853,0.002,2811.6,2811.5,0.1]
[1763949580448,0.9442,2811.6,2810.7,0.90699264]
[1763949580645,0.9442,2811.6,2811.3,0.1]
[1763949581158,0.4553,2811.4,2811.3,0.1]
[1763949581331,0.4553,2811.4,2811.0,6.47]
[1763949581536,0.9422,2811.4,2811.1,1.00699264]
[1763949581841,0.4553,2811.1,2810.9,0.1]
[1763949582145,0.4553,2811.0,2810.9,0.1]
[1763949582763,0.9422,2811.0,2810.6,0.1]
[1763949582934,0.1857,2810.9,2810.6,0.1]
[1763949583572,0.6726,2810.9,2810.6,0.1]
[1763949583768,0.4901,2811.2,2810.5,0.228]
[1763949583955,0.4901,2811.2,2810.9,0.1]
[1763949584160,0.50110153,2811.4,2810.9,0.1]
[1763949584368,0.4775,2811.0,2810.9,0.1]
[1763949584745,0.9676,2811.0,2810.9,0.1]
[1763949584975,0.4775,2811.0,2810.9,0.1]
[1763949585165,0.4901,2811.3,2810.9,0.1]
[1763949585979,0.002,2811.6,2810.6,0.90699264]
[1763949586159,0.4921,2811.6,2811.2,0.1]
[1763949588048,0.4775,2811.3,2810.9,0.1]
[1763949588571,0.4901,2811.2,2810.9,0.1]
[1763949588937,0.4775,2811.0,2810.9,0.1]
[1763949589441,0.9676,2811.0,2810.7,0.1]
[1763949589970,0.1879,2810.9,2810.7,0.1]
[1763949590853,0.9676,2810.8,2810.0,0.1]
[1763949591045,0.4775,2810.1,2810.0,0.1]
[1763949591374,0.4775,2810.1,2809.6,0.1]
[1763949591546,0.9676,2810.1,2809.6,0.1]
[1763949591752,0.9676,2810.1,2809.9,0.1]
[1763949592374,4.96455509,2810.6,2809.5,0.001]
[1763949592375,0.4901,2810.5,2809.5,0.001]
[1763949592574,0.4901,2810.5,2810.2,0.1]
[1763949592772,1.03556551,2810.5,2810.2,0.1]
[1763949593091,0.4775,2810.3,2810.2,0.1]
[1763949593553,0.9676,2810.3,2810.2,0.1]
[1763949593754,0.4775,2810.3,2809.5,0.001]
[1763949593982,0.4775,2810.3,2810.2,0.1]
[1763949594356,0.4901,2810.6,2810.2,0.1]
[1763949595170,0.1899,2810.9,2810.4,0.1]
[1763949595417,1.19544551,2810.9,2810.4,0.1]
[1763949595588,0.68,2810.9,2810.4,0.1]
[1763949595765,0.1899,2810.9,2810.4,0.1]
[1763949595967,0.1899,2810.9,2809.9,0.001]
[1763949595968,0.002,2810.9,2810.8,0.1]
[1763949598285,1.1575,2810.9,2810.1,0.90699264]
[1763949598492,1.1575,2810.9,2810.7,0.1]
[1763949599192,0.1899,2810.9,2810.8,0.1]
[1763949599397,0.002,2810.9,2810.8,0.1]
[1763949600998,0.002,2810.9,2810.4,0.90699264]
[1763949601301,0.002,2810.9,2810.8,0.1]
[1763949601462,0.4901,2810.8,2810.4,0.90699264]
[1763949601658,0.4775,2810.5,2810.4,0.1]
[1763949602192,0.9676,2810.5,2810.4,0.1]
[1763949602498,0.68,2810.9,2810.4,0.1]
[1763949602872,0.4775,2810.5,2810.0,0.1]
[1763949603078,0.53457132,2810.8,2809.5,0.001]
[1763949603079,0.4775,2810.0,2809.5,0.001]
[1763949603500,0.9676,2810.0,2809.5,0.001]
[1763949603661,0.6654,2809.6,2809.5,0.001]
[1763949604106,1.1555,2809.6,2809.5,0.001]
[1763949605688,1.1555,2809.6,2809.2,0.001]
[1763949605895,0.4775,2809.3,2809.2,0.001]
[1763949606201,0.1879,2809.6,2809.2,0.001]
[1763949606496,0.1879,2809.6,2809.5,0.1]
[1763949607104,0.487,2809.6,2809.5,0.1]
[1763949607404,0.9474,2809.6,2809.2,0.001]
[1763949607608,0.487,2809.3,2809.2,0.001]
[1763949608468,0.9474,2809.3,2809.2,0.001]
[1763949608870,0.487,2809.3,2809.2,0.101]
[1763949609103,0.4604,2809.6,2809.2,0.101]
[1763949609403,0.1926,2809.8,2809.4,0.1]
[1763949609583,0.1926,2810.0,2809.7,0.1]
[1763949609778,0.4604,2810.2,2809.3,0.002]
[1763949609978,0.4604,2810.2,2810.0,0.1]
[1763949610218,0.4604,2810.2,2809.6,0.1]
[1763949610522,0.4604,2810.2,2809.2,0.001]
[1763949610523,0.4604,2810.2,2809.7,0.1]
[1763949610666,0.4604,2810.2,2809.9,0.1]
[1763949612073,0.487,2810.0,2809.9,0.1]
[1763949612406,0.487,2810.0,2809.2,0.001]
[1763949612612,0.1926,2809.9,2809.7,0.1]
[1763949614304,0.487,2809.8,2809.5,0.001]
[1763949614751,0.487,2809.6,2809.5,0.001]
[1763949614945,0.4604,2809.7,2809.5,0.001]
[1763949615234,0.1926,2809.9,2809.7,0.1]
[1763949615438,0.002,2810.2,2809.5,0.001]
[1763949615598,0.002,2810.2,2810.0,0.1]
[1763949615799,0.4624,2810.2,2809.8,0.1]
[1763949616638,0.002,2810.2,2810.1,0.102]
[1763949618250,0.9494,2810.2,2810.0,0.1]
[1763949618404,0.9494,2810.2,2809.8,0.1]
[1763949618845,0.6796,2809.9,2809.8,0.1]
[1763949619137,0.6796,2809.9,2809.5,0.101]
[1763949619446,1.14,2809.9,2809.5,0.101]
[1763949619934,0.1926,2809.9,2809.8,0.1]
[1763949620926,0.6796,2809.9,2809.8,0.1]
[1763949621532,0.1926,2809.9,2809.8,0.1]
[1763949622652,0.6796,2809.9,2809.8,0.1]
[1763949622948,1.14,2809.9,2809.5,0.001]
[1763949623119,0.6796,2809.9,2809.5,0.001]
[1763949623321,0.4604,2809.8,2809.6,0.1]
[1763949623525,0.487,2809.6,2809.5,0.001]
[1763949624042,0.9474,2809.6,2809.5,0.001]
[1763949624948,0.653,2809.9,2809.5,0.001]
[1763949625125,0.1926,2810.1,2809.7,0.1]
[1763949625499,0.1926,2810.1,2809.5,0.003]
[1763949625662,0.002,2810.2,2810.1,0.1]
[1763949626150,0.002,2810.2,2810.1,0.002]
[1763949626314,0.002,2810.2,2810.1,0.104]
[1763949626949,0.002,2810.2,2810.1,3.66259222]
[1763949627152,0.002,2810.2,2810.1,0.47025922]
[1763949627314,0.002,2810.2,2810.1,0.104]
[1763949627516,0.002,2810.2,2810.1,0.102]
[1763949627854,0.002,2810.2,2810.1,0.1]
[1763949628014,0.002,2810.2,2810.1,0.102]
[1763949628448,0.002,2810.2,2810.1,0.1]
[1763949628810,0.002,2810.2,2810.1,0.102]
[1763949629449,0.1926,2810.3,2810.0,0.1]
[1763949629615,0.1926,2810.3,2809.5,0.229]
[1763949629616,0.1926,2810.3,2809.8,0.1]
[1763949630551,0.487,2809.9,2809.5,0.101]
[1763949630753,0.1926,2810.3,2809.7,0.1]
[1763949631052,0.68307527,2810.3,2809.7,0.1]
[1763949631455,0.4604,2810.2,2809.7,0.1]
[1763949631655,0.4604,2810.2,2809.5,0.101]
[1763949631656,0.483,2809.8,2809.5,0.101]
[1763949631853,0.0048,2809.6,2809.5,0.001]
[1763949632232,4.71215271,2810.0,2809.5,0.101]
[1763949632461,5.17255271,2810.0,2809.5,0.001]
[1763949632647,5.17255271,2810.0,2809.7,0.1]
[1763949632951,0.1926,2810.3,2809.8,0.1]
[1763949633483,0.653,2810.3,2809.8,0.1]
[1763949633646,0.1926,2810.3,2810.0,0.1]
[1763949634056,0.1926,2810.3,2810.1,0.1]
[1763949634357,4.71215271,2810.5,2810.1,0.1]
[1763949634560,0.483,2810.2,2810.0,0.1]
[1763949638474,0.0048,2810.1,2810.0,0.1]
[1763949638649,0.0048,2810.1,2809.8,0.1]
[1763949638850,0.6718,2809.9,2809.5,0.101]
[1763949639046,0.0106,2809.6,2809.5,0.001]
[1763949639459,0.4986,2809.6,2809.5,0.001]
[1763949641186,0.4617,2809.6,2809.5,0.001]
[1763949643006,0.4878,2809.8,2809.5,0.001]
[1763949643173,0.462,2809.6,2809.5,0.001]
[1763949643683,0.9178,2809.6,2809.5,0.001]
[1763949643882,4.89865271,2809.9,2809.5,0.101]
[1763949644189,0.4558,2809.8,2809.5,0.101]
[1763949644392,4.89865271,2809.9,2809.5,0.101]
[1763949644693,5.35445271,2809.9,2809.5,0.101]
[1763949644858,0.6405,2810.2,2809.5,0.101]
[1763949645058,0.1847,2810.2,2809.9,0.1]
[1763949645294,0.6405,2810.2,2809.5,0.001]
[1763949645486,0.6405,2810.2,2809.8,0.1]
[1763949645791,4.71215271,2810.4,2809.9,0.1]
[1763949645958,4.71215271,2810.4,2809.5,0.4849]
[1763949646158,4.71215271,2810.9,2810.3,0.4564]
[1763949646368,5.16795271,2810.9,2810.4,0.1]
[1763949646991,0.4742,2810.5,2810.4,0.1]
[1763949647292,0.4742,2810.5,2810.2,0.1]
[1763949647918,0.4742,2810.3,2809.8,0.1]
[1763949648073,0.4742,2810.3,2809.6,0.4839]
[1763949648273,0.4742,2810.3,2810.0,0.1]
[1763949648676,0.93,2810.3,2810.0,0.1]
[1763949649709,5.20282798,2810.9,2810.2,0.5564]
[1763949649710,4.71215271,2810.8,2810.2,0.5564]
[1763949649867,4.71215271,2810.8,2810.3,0.1]
[1763949650282,5.16795271,2810.8,2810.3,0.1]
[1763949650483,0.4558,2810.7,2810.3,0.1]
[1763949651379,4.71215271,2810.8,2810.3,0.1]
[1763949651560,0.002,2811.0,2810.7,0.4564]
[1763949651783,0.002,2811.0,2810.7,0.5564]
[1763949652166,0.002,2811.0,2810.7,0.1]
[1763949653378,0.4742,2810.8,2810.1,0.1]
[1763949653576,0.51867132,2810.8,2810.1,0.2215]
[1763949653764,0.51867132,2810.8,2810.1,0.1215]
[1763949653988,0.51867132,2810.8,2810.3,0.1]
[1763949654190,0.4742,2810.8,2810.3,0.1]
[1763949654393,0.97447132,2810.8,2810.3,0.1]
[1763949654901,0.97447132,2810.8,2809.8,0.4839]
[1763949654902,0.0338,2810.4,2810.0,0.1]
[1763949655104,0.4558,2810.7,2810.0,0.1]
[1763949656210,0.4558,2810.7,2810.2,0.1]
[1763949657000,4.89685271,2810.9,2810.2,0.1]
[1763949657291,4.89685271,2810.9,2810.2,0.5839]
[1763949657495,4.89685271,2810.9,2810.2,0.1]
[1763949657696,4.89685271,2810.9,2809.5,0.001]
[1763949657697,0.4742,2810.3,2809.7,0.4839]
[1763949657886,0.4742,2810.3,2809.5,0.001]
[1763949658082,0.93,2810.3,2809.7,0.1]
[1763949658328,0.93,2810.3,2809.5,0.001]
[1763949658621,0.0338,2809.6,2809.5,0.001]
[1763949659000,0.4896,2809.6,2809.5,0.001]
[1763949660747,0.1847,2810.5,2809.5,0.4574]
[1763949660885,0.002,2811.0,2810.4,0.6474]
[1763949661090,0.002,2811.0,2810.7,0.1]
[1763949661321,0.002,2811.0,2810.4,0.191]
[1763949661520,0.1847,2810.9,2810.4,0.1]
[1763949661736,0.1847,2810.9,2810.2,0.291]
[1763949661904,1.17596527,2810.9,2810.2,0.1]
[1763949662503,0.6405,2810.9,2810.2,0.1]
[1763949664199,0.1847,2810.9,2810.1,0.191]
[1763949664531,0.002,2811.0,2810.4,0.1]
[1763949664835,0.002,2811.0,2810.7,0.1]
[1763949665014,0.002,2811.0,2810.2,0.4839]
[1763949665196,0.002,2811.0,2810.7,0.1]
[1763949665508,0.002,2811.0,2810.9,0.1]
[1763949665713,0.002,2811.0,2810.9,0.5564]
[1763949666210,0.002,2811.0,2810.9,1.0403]
[1763949667345,0.002,2811.0,2810.9,0.5564]
[1763949667829,0.002,2811.0,2810.9,0.1]
[1763949668013,0.002,2811.0,2810.9,1.0562]
[1763949668951,0.002,2811.0,2810.9,1.51759006]
[1763949669441,0.002,2811.0,2810.9,1.0562]
[1763949670714,0.002,2811.0,2810.9,1.2842]
[1763949670910,0.002,2811.0,2810.9,4.84177942]
[1763949671258,0.002,2811.0,2810.9,9.47745706]
[1763949671425,0.002,2811.0,2810.9,5.74877206]
[1763949671753,0.002,2811.0,2810.9,8.87648965]
[1763949672247,0.002,2811.3,2810.9,16.22421607]
[1763949672446,0.002,2811.3,2811.2,0.7691]
[1763949672775,0.142557,2813.4,2811.2,0.7691]
[1763949672776,1.79561322,2816.5,2814.5,0.0955]
[1763949672935,1.81027474,2817.7,2816.1,11.569147]
[1763949673113,0.18585673,2818.4,2817.6,26.664321]
[1763949673462,0.04432309,2820.2,2818.3,12.910641]
[1763949673613,0.1833,2820.4,2820.0,1.87481071]
[1763949673928,0.1833,2820.9,2820.2,2.49974761]
[1763949674133,0.73984361,2821.0,2820.7,2.49974761]
[1763949674134,0.1833,2821.0,2820.7,2.49974761]
[1763949674343,5.26858141,2821.6,2820.8,0.7508167]
[1763949674652,1.01918814,2821.5,2821.3,1.23214739]
[1763949674857,1.01918814,2821.5,2821.4,0.7508167]
[1763949674858,0.474,2821.5,2821.4,0.7508167]
[1763949675314,1.01214222,2821.5,2821.4,0.50425038]
[1763949675518,0.96242351,2821.5,2821.4,0.50425038]
[1763949675811,0.474,2821.5,2821.4,0.50425038]
[1763949676241,0.474,2821.5,2821.4,3.00399799]
[1763949676416,0.474,2821.5,2821.4,0.50425038]
[1763949676616,0.1833,2822.0,2821.4,0.50425038]
[1763949676857,0.1833,2822.0,2821.2,2.49974761]
[1763949676858,0.6573,2822.0,2821.9,1.21463208]
[1763949677048,0.6573,2822.0,2821.8,1.21463208]
[1763949677256,0.6573,2822.0,2820.5,4.37976411]
[1763949677257,0.1833,2822.0,2821.7,0.9067124]
[1763949677471,0.6573,2822.3,2821.9,0.9067124]
[1763949677750,0.6573,2822.3,2821.5,0.4067124]
[1763949677751,0.90699264,2822.0,2821.5,0.4067124]
[1763949678049,0.5257353,2821.9,2820.9,1.21463208]
[1763949678281,0.6573,2822.3,2820.7,1.21463208]
[1763949678443,0.1833,2822.3,2821.4,0.1]
[1763949678641,0.04429168,2822.2,2821.8,0.1]
[1763949678973,0.474,2822.2,2820.9,1.21463208]
[1763949679201,0.474,2822.2,2820.8,0.1]
[1763949679344,0.04429325,2822.1,2820.8,1.21463208]
[1763949679540,0.474,2822.2,2820.6,0.1]
[1763949679783,0.1833,2822.6,2821.9,0.1]
[1763949679950,0.474,2822.2,2820.9,1.21463208]
[1763949680149,0.474,2822.2,2820.6,0.90699264]
[1763949680150,0.474,2822.2,2821.0,0.4674]
[1763949680350,0.474,2822.2,2821.1,0.1]
[1763949680786,0.04429325,2822.1,2820.8,0.1]
[1763949680971,0.90699264,2821.9,2820.6,0.1]
[1763949681143,0.5731353,2821.8,2820.6,0.1]
[1763949681476,1.0471353,2821.8,2820.6,0.1]
[1763949681683,0.474,2821.7,2820.9,0.1]
[1763949681908,0.1833,2827.7,2825.0,0.09999999]
[1763949682108,0.1833,2826.9,2826.4,0.09999999]
[1763949682382,0.1833,2826.9,2825.6,0.09999999]
[1763949682383,4.35036033,2826.6,2825.6,0.09999999]
[1763949682683,6.14977876,2826.6,2825.8,0.4268]
[1763949682843,0.474,2826.5,2825.7,0.09999999]
[1763949683194,0.1833,2826.9,2826.2,0.09999999]
[1763949683353,0.1833,2827.1,2826.3,0.09999999]
[1763949683550,0.1833,2827.1,2826.8,0.09999999]
[1763949683742,0.474,2827.6,2827.2,0.09999999]
[1763949683937,0.474,2827.6,2825.9,0.242]
[1763949683938,0.474,2827.6,2826.9,0.09999999]
[1763949684173,0.1833,2828.0,2827.7,0.09999999]
[1763949684339,0.1833,2829.6,2826.2,0.1803]
[1763949684340,0.1833,2828.3,2828.0,0.09999999]
[1763949684806,0.474,2829.2,2827.5,0.4268]
[1763949684969,0.474,2828.9,2828.2,0.09999999]
[1763949685174,0.474,2828.9,2828.0,0.09999999]
[1763949685476,0.474,2828.9,2826.8,3.53746701]
[1763949685477,0.1833,2828.1,2827.1,0.09999999]
[1763949685862,0.002,2827.7,2826.8,0.09999999]
[1763949686251,0.43723603,2827.7,2827.1,0.1]
[1763949686565,0.43723603,2827.7,2826.8,0.09999999]
[1763949686566,0.474,2827.6,2826.8,0.09999999]
[1763949686760,0.1833,2827.1,2826.8,0.09999999]
[1763949687156,0.474,2827.6,2825.7,0.4929]
[1763949687157,0.474,2827.6,2827.1,0.1]
[1763949687490,0.474,2827.6,2827.0,0.09999999]
[1763949687676,0.1833,2827.1,2826.6,0.09999999]
[1763949687875,0.474,2827.6,2827.0,0.09999999]
[1763949688077,0.1833,2827.1,2826.6,0.09999999]
[1763949688686,0.474,2827.5,2826.9,0.09999999]
[1763949688894,0.474,2827.5,2827.0,0.1]
[1763949689076,0.474,2827.5,2826.9,0.09999999]
[1763949689261,0.474,2827.5,2825.8,0.4268]
[1763949689262,0.474,2827.5,2826.6,0.09999999]
[1763949689506,0.474,2827.5,2825.8,0.4268]
[1763949689507,4.35036033,2827.4,2826.7,0.09999999]
[1763949689708,0.1833,2826.8,2826.7,0.09999999]
[1763949689932,0.95643603,2827.3,2826.7,0.09999999]
[1763949690244,0.002,2827.7,2826.9,0.19999999]
[1763949690396,0.002,2827.7,2826.7,0.09999999]
[1763949690397,0.474,2827.2,2826.7,0.09999999]
[1763949690597,0.474,2827.6,2826.7,0.09999999]
[1763949690807,0.002,2827.7,2826.9,0.09999999]
[1763949691012,0.002,2827.7,2826.3,0.4268]
[1763949691013,0.002,2827.7,2827.4,0.09999999]
[1763949691239,0.002,2827.7,2827.4,0.19999999]
[1763949691447,3.753,2832.7,2829.1,2.269779]
[1763949691743,0.1833,2833.0,2832.0,0.09999999]
[1763949691897,0.474,2832.9,2831.1,0.09999999]
[1763949692101,5.70461034,2832.9,2831.2,0.09999999]
[1763949692313,0.58879103,2832.8,2831.8,5.131326]
[1763949692611,1.06279103,2832.8,2831.6,5.131326]
[1763949693012,5.23061034,2832.3,2831.3,0.09999999]
[1763949693533,0.474,2832.2,2831.4,5.131326]
[1763949693851,5.23061034,2831.6,2830.5,0.19999999]
[1763949694153,0.52306103,2831.5,2830.9,5.131326]
[1763949694314,0.99706103,2831.5,2830.9,0.09999999]
[1763949694634,5.41391034,2831.0,2830.4,0.09999999]
[1763949694955,5.41391034,2831.0,2830.1,0.09999999]
[1763949695250,5.41391034,2831.0,2829.7,0.09999999]
[1763949695251,5.23061034,2830.4,2829.7,0.09999999]
[1763949695402,5.23061034,2830.4,2829.6,0.09999999]
[1763949695596,5.23061034,2830.4,2828.0,7.28633578]
[1763949695597,0.474,2830.3,2829.9,0.09999999]
[1763949695998,0.1833,2830.0,2829.6,0.09999999]
[1763949696326,0.1833,2830.0,2828.6,1.0625581]
[1763949696327,0.474,2830.9,2830.2,0.09999999]
[1763949696706,0.474,2830.9,2830.3,0.09999999]
[1763949697554,0.474,2830.9,2830.7,0.09999999]
[1763949697946,0.474,2830.9,2830.1,0.09999999]
[1763949698282,9.038401,2830.4,2827.5,3.5366575]
[1763949698572,9.038401,2830.4,2826.3,6.44524242]
[1763949698573,0.1849,2828.7,2828.4,0.09999999]
[1763949698782,5.23061034,2828.6,2827.6,1.16288561]
[1763949698922,5.70101034,2828.6,2827.9,0.09999999]
[1763949699117,0.88289455,2828.5,2827.5,0.09999999]
[1763949699331,0.88289455,2828.5,2827.3,0.09999999]
[1763949699530,0.4704,2828.4,2827.9,0.09999999]
[1763949699734,0.4704,2828.4,2827.4,0.09999999]
[1763949699958,0.4704,2828.4,2827.9,0.09999999]
[1763949700124,1.08175049,2828.4,2827.4,0.09999999]
[1763949700322,1.08175049,2828.4,2826.5,0.1071]
[1763949700553,0.4704,2828.3,2826.9,0.1]
[1763949700759,0.4704,2828.3,2827.2,0.1]
[1763949700969,0.1849,2832.2,2828.2,0.1071]
[1763949701264,0.4704,2833.4,2831.7,6.51235999]
[1763949701424,0.4704,2833.4,2832.8,0.09999999]
[1763949701758,0.55403237,2833.3,2832.6,0.09999999]
[1763949701946,0.4704,2833.4,2833.0,0.09999999]